[Event "Titled Tuesday Blitz August 09 Early 2022"]
[White "Malek, Jan"]
[Black "Nurmanova, Alua"]
[WhiteFideId "21864080"]
[BlackFideId "13729390"]
[WhiteElo "2143"]
[BlackElo "1921"]
[Result "0-1"]
[Round "06"]
[TimeControl "180+1"]
[Date "2022.08.09"]
[WhiteClock "0:00:09"]
[BlackClock "0:00:18"]

1. c4 {[%clk 0:03:00]}  Nf6 {[%clk 0:02:07]} 2. Nf3 {[%clk 0:02:58]}  g6 {[%clk 0:02:07]} 3. g3 {[%clk 0:02:56]}  Bg7 {[%clk 0:02:08]} 4. Bg2 {[%clk 0:02:57]}  O-O {[%clk 0:02:09]} 5. O-O {[%clk 0:02:57]}  d6 {[%clk 0:02:09]} 6. Nc3 {[%clk 0:02:49]}  e5 {[%clk 0:02:09]} 7. d4 {[%clk 0:02:47]}  Nbd7 {[%clk 0:02:07]} 8. e4 {[%clk 0:02:47]}  exd4 {[%clk 0:02:06]} 9. Nxd4 {[%clk 0:02:48]}  Re8 {[%clk 0:02:06]} 10. Re1 {[%clk 0:02:49]}  Nc5 {[%clk 0:02:06]} 11. h3 {[%clk 0:02:50]}  a5 {[%clk 0:02:03]} 12. b3 {[%clk 0:02:49]}  Bd7 {[%clk 0:02:00]} 13. Ba3 {[%clk 0:02:39]}  Qc8 {[%clk 0:02:00]} 14. Kh2 {[%clk 0:02:37]}  Re5 {[%clk 0:01:58]} 15. g4 {[%clk 0:02:24]}  Bxg4 {[%clk 0:01:15]} 16. hxg4 {[%clk 0:02:23]}  Nxg4+ {[%clk 0:01:16]} 17. Kg1 {[%clk 0:02:22]}  Rh5 {[%clk 0:01:15]} 18. Nd5 {[%clk 0:02:18]}  Qd7 {[%clk 0:01:09]} 19. Bb2 {[%clk 0:02:12]}  Re8 {[%clk 0:00:51]} 20. Rb1 {[%clk 0:01:56]}  Ne5 {[%clk 0:00:50]} 21. Re3 {[%clk 0:01:51]}  c6 {[%clk 0:00:49]} 22. Nf4 {[%clk 0:01:49]}  Rh4 {[%clk 0:00:49]} 23. Nde2 {[%clk 0:01:43]}  Bh6 {[%clk 0:00:44]} 24. Bxe5 {[%clk 0:01:37]}  Rxe5 {[%clk 0:00:42]} 25. Rh3 {[%clk 0:01:12]}  Qe7 {[%clk 0:00:26]} 26. Rxh4 {[%clk 0:00:55]}  Qxh4 {[%clk 0:00:26]} 27. Qxd6 {[%clk 0:00:53]}  Bxf4 {[%clk 0:00:19]} 28. Nxf4 {[%clk 0:00:52]}  Qxf4 {[%clk 0:00:19]} 29. Re1 {[%clk 0:00:38]}  Nxe4 {[%clk 0:00:16]} 30. Qd8+ {[%clk 0:00:21]}  Kg7 {[%clk 0:00:16]} 31. Qd4 {[%clk 0:00:22]}  c5 {[%clk 0:00:14]} 32. Rxe4 {[%clk 0:00:22]}  Qc1+ {[%clk 0:00:13]} 33. Bf1 {[%clk 0:00:18]}  cxd4 {[%clk 0:00:12]} 34. Rxe5 {[%clk 0:00:18]}  d3 {[%clk 0:00:13]} 35. Kg2 {[%clk 0:00:12]}  d2 {[%clk 0:00:13]} 36. Be2 {[%clk 0:00:13]}  d1=Q {[%clk 0:00:13]} 37. Bxd1 {[%clk 0:00:13]}  Qxd1 {[%clk 0:00:14]} 38. Rd5 {[%clk 0:00:14]}  Qg4+ {[%clk 0:00:14]} 39. Kf1 {[%clk 0:00:14]}  Qe4 {[%clk 0:00:15]} 40. Rb5 {[%clk 0:00:14]}  Qb1+ {[%clk 0:00:16]} 41. Kg2 {[%clk 0:00:13]}  Qxa2 {[%clk 0:00:17]} 42. Rxb7 {[%clk 0:00:14]}  Qc2 {[%clk 0:00:17]} 43. Rb5 {[%clk 0:00:14]}  Qe4+ {[%clk 0:00:17]} 44. f3 {[%clk 0:00:14]}  Qd3 {[%clk 0:00:18]} 45. Rb7 {[%clk 0:00:13]}  Qd2+ {[%clk 0:00:18]} 46. Kh3 {[%clk 0:00:13]}  h5 {[%clk 0:00:19]} 47. c5 {[%clk 0:00:12]}  g5 {[%clk 0:00:19]} 48. c6 {[%clk 0:00:12]}  Qf4 {[%clk 0:00:18]} 49. Kg2 {[%clk 0:00:12]}  g4 {[%clk 0:00:18]} 50. fxg4 {[%clk 0:00:11]}  Qxg4+ {[%clk 0:00:19]} 51. Kh2 {[%clk 0:00:11]}  Qf4+ {[%clk 0:00:19]} 52. Kg1 {[%clk 0:00:10]}  Qe3+ {[%clk 0:00:19]} 53. Kh2 {[%clk 0:00:10]}  Qe5+ {[%clk 0:00:19]} 54. Kg1 {[%clk 0:00:10]}  Qd4+ {[%clk 0:00:19]} 55. Kf1 {[%clk 0:00:10]}  Qd3+ {[%clk 0:00:18]} 56. Kf2 {[%clk 0:00:09]}  Qc2+ {[%clk 0:00:18]} 0-1


[Site "https://www.chess.com"]

[Event "Titled Tuesday Blitz August 09 Early 2022"]
[White "Mardov, Dimitar"]
[Black "Karttunen, Mika"]
[WhiteFideId "30919495"]
[BlackFideId "502081"]
[WhiteElo "2862"]
[BlackElo "2709"]
[Result "1-0"]
[Round "06"]
[TimeControl "180+1"]
[Date "2022.08.09"]
[WhiteClock "0:00:05"]
[BlackClock "0:00:18"]

1. d4 {[%clk 0:03:00]}  Nf6 {[%clk 0:02:59]} 2. c4 {[%clk 0:02:59]}  e6 {[%clk 0:02:59]} 3. Nc3 {[%clk 0:02:58]}  d5 {[%clk 0:03:00]} 4. Nf3 {[%clk 0:02:58]}  Bb4 {[%clk 0:02:59]} 5. Qa4+ {[%clk 0:02:58]}  Nc6 {[%clk 0:02:59]} 6. e3 {[%clk 0:02:59]}  O-O {[%clk 0:02:56]} 7. Qc2 {[%clk 0:02:56]}  a6 {[%clk 0:02:52]} 8. Bd2 {[%clk 0:02:56]}  Bd6 {[%clk 0:02:45]} 9. Be2 {[%clk 0:02:53]}  dxc4 {[%clk 0:02:36]} 10. Bxc4 {[%clk 0:02:54]}  e5 {[%clk 0:02:36]} 11. dxe5 {[%clk 0:02:55]}  Nxe5 {[%clk 0:02:36]} 12. Nxe5 {[%clk 0:02:55]}  Bxe5 {[%clk 0:02:36]} 13. O-O-O {[%clk 0:02:56]}  Qe7 {[%clk 0:02:34]} 14. h3 {[%clk 0:02:52]}  b5 {[%clk 0:02:31]} 15. Bd3 {[%clk 0:02:44]}  Bb7 {[%clk 0:02:30]} 16. f4 {[%clk 0:02:18]}  Bd6 {[%clk 0:02:29]} 17. e4 {[%clk 0:02:12]}  b4 {[%clk 0:02:15]} 18. e5 {[%clk 0:02:10]}  bxc3 {[%clk 0:02:13]} 19. Bxc3 {[%clk 0:02:08]}  Nd5 {[%clk 0:01:53]} 20. exd6 {[%clk 0:02:06]}  cxd6 {[%clk 0:01:53]} 21. Bxh7+ {[%clk 0:02:04]}  Kh8 {[%clk 0:01:53]} 22. Rhe1 {[%clk 0:01:58]}  Qh4 {[%clk 0:01:52]} 23. Be4 {[%clk 0:01:28]}  Nxc3 {[%clk 0:01:51]} 24. bxc3 {[%clk 0:01:11]}  Rab8 {[%clk 0:01:31]} 25. Bxb7 {[%clk 0:00:44]}  Rxb7 {[%clk 0:01:30]} 26. Re4 {[%clk 0:00:43]}  Rfb8 {[%clk 0:01:13]} 27. Rxd6 {[%clk 0:00:25]}  a5 {[%clk 0:00:57]} 28. Rd5 {[%clk 0:00:13]}  Qg3 {[%clk 0:00:52]} 29. Rh5+ {[%clk 0:00:08]}  Kg8 {[%clk 0:00:52]} 30. Re8+ {[%clk 0:00:06]}  Rxe8 {[%clk 0:00:51]} 31. Qh7+ {[%clk 0:00:06]}  Kf8 {[%clk 0:00:51]} 32. Qh8+ {[%clk 0:00:07]}  Ke7 {[%clk 0:00:52]} 33. Re5+ {[%clk 0:00:07]}  Kf6 {[%clk 0:00:50]} 34. Qxe8 {[%clk 0:00:05]}  Qxf4+ {[%clk 0:00:48]} 35. Re3 {[%clk 0:00:06]}  Rc7 {[%clk 0:00:37]} 36. Kc2 {[%clk 0:00:05]}  Qf5+ {[%clk 0:00:36]} 37. Qe4 {[%clk 0:00:05]}  Qxe4+ {[%clk 0:00:33]} 38. Rxe4 {[%clk 0:00:05]}  Rc5 {[%clk 0:00:33]} 39. Rf4+ {[%clk 0:00:06]}  Ke6 {[%clk 0:00:33]} 40. Kd3 {[%clk 0:00:06]}  f5 {[%clk 0:00:34]} 41. Rc4 {[%clk 0:00:07]}  Rd5+ {[%clk 0:00:34]} 42. Rd4 {[%clk 0:00:07]}  Re5 {[%clk 0:00:33]} 43. Kd2 {[%clk 0:00:08]}  Rb5 {[%clk 0:00:32]} 44. Kc2 {[%clk 0:00:07]}  g5 {[%clk 0:00:31]} 45. Rd2 {[%clk 0:00:07]}  f4 {[%clk 0:00:32]} 46. g3 {[%clk 0:00:06]}  Kf5 {[%clk 0:00:28]} 47. gxf4 {[%clk 0:00:07]}  gxf4 {[%clk 0:00:28]} 48. c4 {[%clk 0:00:07]}  Rb8 {[%clk 0:00:26]} 49. Kc3 {[%clk 0:00:07]}  f3 {[%clk 0:00:27]} 50. c5 {[%clk 0:00:05]}  Ke4 {[%clk 0:00:27]} 51. Kc4 {[%clk 0:00:05]}  Rb4+ {[%clk 0:00:27]} 52. Kc3 {[%clk 0:00:05]}  Rb1 {[%clk 0:00:25]} 53. Kc4 {[%clk 0:00:05]}  Ke3 {[%clk 0:00:24]} 54. Rd8 {[%clk 0:00:05]}  f2 {[%clk 0:00:24]} 55. Re8+ {[%clk 0:00:05]}  Kd2 {[%clk 0:00:24]} 56. Rd8+ {[%clk 0:00:05]}  Kc2 {[%clk 0:00:24]} 57. Rf8 {[%clk 0:00:05]}  f1=Q+ {[%clk 0:00:24]} 58. Rxf1 {[%clk 0:00:06]}  Rxf1 {[%clk 0:00:24]} 59. c6 {[%clk 0:00:07]}  Kb2 {[%clk 0:00:24]} 60. a4 {[%clk 0:00:06]}  Ka3 {[%clk 0:00:23]} 61. Kb5 {[%clk 0:00:07]}  Rc1 {[%clk 0:00:23]} 62. h4 {[%clk 0:00:06]}  Rh1 {[%clk 0:00:18]} 63. c7 {[%clk 0:00:06]}  Rc1 {[%clk 0:00:18]} 64. Kb6 {[%clk 0:00:06]}  Kxa4 {[%clk 0:00:18]} 65. h5 {[%clk 0:00:07]}  Kb4 {[%clk 0:00:18]} 66. h6 {[%clk 0:00:07]}  a4 {[%clk 0:00:17]} 67. h7 {[%clk 0:00:08]}  Rh1 {[%clk 0:00:17]} 68. c8=Q {[%clk 0:00:07]}  Rh6+ {[%clk 0:00:17]} 69. Qc6 {[%clk 0:00:03]}  Rxh7 {[%clk 0:00:16]} 70. Qe4+ {[%clk 0:00:04]}  Kb3 {[%clk 0:00:16]} 71. Qxh7 {[%clk 0:00:04]}  a3 {[%clk 0:00:16]} 72. Qb1+ {[%clk 0:00:05]}  Kc3 {[%clk 0:00:17]} 73. Qa1+ {[%clk 0:00:05]}  Kb3 {[%clk 0:00:17]} 74. Kb5 {[%clk 0:00:05]}  a2 {[%clk 0:00:18]} 75. Kc5 {[%clk 0:00:06]}  Kc2 {[%clk 0:00:18]} 76. Qxa2+ {[%clk 0:00:05]} 1-0


[Site "https://www.chess.com"]

[Event "Titled Tuesday Blitz August 09 Early 2022"]
[White "Martinez, Shawn"]
[Black "Williams, Simon K"]
[WhiteFideId "2039770"]
[BlackFideId "404454"]
[WhiteElo "2174"]
[BlackElo "2468"]
[Result "0-1"]
[Round "06"]
[TimeControl "180+1"]
[Date "2022.08.09"]
[WhiteClock "0:00:01"]
[BlackClock "0:00:50"]

1. e4 {[%clk 0:02:53]}  d6 {[%clk 0:02:59]} 2. d4 {[%clk 0:02:52]}  Nf6 {[%clk 0:02:58]} 3. Nc3 {[%clk 0:02:53]}  Nbd7 {[%clk 0:02:58]} 4. Bg5 {[%clk 0:02:53]}  e5 {[%clk 0:02:58]} 5. Nf3 {[%clk 0:02:52]}  Be7 {[%clk 0:02:57]} 6. Qd2 {[%clk 0:02:51]}  c6 {[%clk 0:02:57]} 7. a4 {[%clk 0:02:40]}  Qc7 {[%clk 0:02:56]} 8. Bd3 {[%clk 0:02:33]}  O-O {[%clk 0:02:54]} 9. O-O {[%clk 0:02:21]}  Re8 {[%clk 0:02:53]} 10. Rfe1 {[%clk 0:02:20]}  Nf8 {[%clk 0:02:52]} 11. a5 {[%clk 0:02:07]}  Ng6 {[%clk 0:02:51]} 12. h3 {[%clk 0:01:46]}  h6 {[%clk 0:02:49]} 13. Be3 {[%clk 0:01:34]}  Nh5 {[%clk 0:02:48]} 14. Nh2 {[%clk 0:01:20]}  Nhf4 {[%clk 0:02:47]} 15. Ne2 {[%clk 0:01:15]}  Nxd3 {[%clk 0:02:41]} 16. cxd3 {[%clk 0:01:12]}  Be6 {[%clk 0:02:27]} 17. Rac1 {[%clk 0:01:04]}  d5 {[%clk 0:02:23]} 18. Nf3 {[%clk 0:00:55]}  dxe4 {[%clk 0:02:14]} 19. dxe4 {[%clk 0:00:53]}  Red8 {[%clk 0:01:33]} 20. Qc3 {[%clk 0:00:43]}  Bf6 {[%clk 0:01:31]} 21. d5 {[%clk 0:00:27]}  Bd7 {[%clk 0:01:30]} 22. Red1 {[%clk 0:00:17]}  Be8 {[%clk 0:01:21]} 23. b4 {[%clk 0:00:17]}  Qd7 {[%clk 0:01:19]} 24. dxc6 {[%clk 0:00:17]}  Qxc6 {[%clk 0:01:19]} 25. Qb2 {[%clk 0:00:12]}  Qxe4 {[%clk 0:01:14]} 26. Ng3 {[%clk 0:00:11]}  Rxd1+ {[%clk 0:01:12]} 27. Rxd1 {[%clk 0:00:10]}  Qc6 {[%clk 0:01:10]} 28. Nf5 {[%clk 0:00:09]}  a6 {[%clk 0:01:05]} 29. h4 {[%clk 0:00:03]}  Qc8 {[%clk 0:01:02]} 30. g4 {[%clk 0:00:03]}  h5 {[%clk 0:01:01]} 31. Nh2 {[%clk 0:00:02]}  hxg4 {[%clk 0:01:01]} 32. Nd6 {[%clk 0:00:02]}  Qe6 {[%clk 0:01:00]} 33. h5 {[%clk 0:00:02]}  Nf4 {[%clk 0:00:59]} 34. Nxb7 {[%clk 0:00:03]}  Bc6 {[%clk 0:00:53]} 35. Nc5 {[%clk 0:00:02]}  Nh3+ {[%clk 0:00:52]} 36. Kf1 {[%clk 0:00:03]}  Bb5+ {[%clk 0:00:50]} 37. Ke1 {[%clk 0:00:01]}  Qc6 {[%clk 0:00:50]} 0-1


[Site "https://www.chess.com"]

[Event "Titled Tuesday Blitz August 09 Early 2022"]
[White "McConnell, Griffin"]
[Black "Musovic, Armin"]
[WhiteFideId "30942551"]
[BlackFideId "939935"]
[WhiteElo "2314"]
[BlackElo "2255"]
[Result "0-1"]
[Round "06"]
[TimeControl "180+1"]
[Date "2022.08.09"]
[WhiteClock "0:00:24"]
[BlackClock "0:00:47"]

1. e4 {[%clk 0:03:00]}  c6 {[%clk 0:02:56]} 2. Nc3 {[%clk 0:03:00]}  d5 {[%clk 0:02:57]} 3. d3 {[%clk 0:03:00]}  a6 {[%clk 0:02:53]} 4. f4 {[%clk 0:02:59]}  Nf6 {[%clk 0:02:51]} 5. Be2 {[%clk 0:02:58]}  c5 {[%clk 0:02:47]} 6. Nf3 {[%clk 0:02:56]}  Nc6 {[%clk 0:02:47]} 7. O-O {[%clk 0:02:52]}  h6 {[%clk 0:02:39]} 8. a3 {[%clk 0:02:46]}  b5 {[%clk 0:02:38]} 9. e5 {[%clk 0:02:35]}  Ng8 {[%clk 0:02:36]} 10. Qe1 {[%clk 0:02:31]}  e6 {[%clk 0:02:36]} 11. Qg3 {[%clk 0:02:23]}  Nge7 {[%clk 0:02:35]} 12. Nh4 {[%clk 0:02:21]}  g6 {[%clk 0:02:33]} 13. Bd1 {[%clk 0:02:04]}  Bb7 {[%clk 0:02:24]} 14. Ne2 {[%clk 0:02:02]}  d4 {[%clk 0:02:21]} 15. Kh1 {[%clk 0:01:59]}  Nf5 {[%clk 0:02:19]} 16. Nxf5 {[%clk 0:01:58]}  gxf5 {[%clk 0:02:20]} 17. Qf2 {[%clk 0:01:58]}  Rg8 {[%clk 0:02:17]} 18. Ng1 {[%clk 0:01:50]}  Ne7 {[%clk 0:02:07]} 19. Bf3 {[%clk 0:01:50]}  Nd5 {[%clk 0:02:07]} 20. Ne2 {[%clk 0:01:46]}  Be7 {[%clk 0:02:05]} 21. Ng3 {[%clk 0:01:46]}  Bh4 {[%clk 0:02:04]} 22. b4 {[%clk 0:01:24]}  cxb4 {[%clk 0:01:47]} 23. axb4 {[%clk 0:01:22]}  Qb6 {[%clk 0:01:43]} 24. Bb2 {[%clk 0:01:15]}  Ne3 {[%clk 0:01:28]} 25. Bxb7 {[%clk 0:01:01]}  Qxb7 {[%clk 0:01:29]} 26. Bxd4 {[%clk 0:01:01]}  Ng4 {[%clk 0:01:09]} 27. Qf3 {[%clk 0:00:56]}  Qxf3 {[%clk 0:01:02]} 28. gxf3 {[%clk 0:00:54]}  Nxh2 {[%clk 0:01:01]} 29. Kxh2 {[%clk 0:00:27]}  Bxg3+ {[%clk 0:01:01]} 30. Kg2 {[%clk 0:00:27]}  Bxf4+ {[%clk 0:01:02]} 31. Kf2 {[%clk 0:00:27]}  O-O-O {[%clk 0:00:51]} 32. c3 {[%clk 0:00:23]}  Kb7 {[%clk 0:00:49]} 33. Rg1 {[%clk 0:00:20]}  h5 {[%clk 0:00:45]} 34. Rh1 {[%clk 0:00:19]}  h4 {[%clk 0:00:45]} 35. Rag1 {[%clk 0:00:16]}  Bg3+ {[%clk 0:00:45]} 36. Ke3 {[%clk 0:00:14]}  Rg6 {[%clk 0:00:39]} 37. Rh3 {[%clk 0:00:12]}  Rc8 {[%clk 0:00:34]} 38. Ke2 {[%clk 0:00:11]}  f4 {[%clk 0:00:29]} 39. Rg2 {[%clk 0:00:10]}  Rg5 {[%clk 0:00:28]} 40. Kf1 {[%clk 0:00:08]}  Rcg8 {[%clk 0:00:26]} 41. Rh1 {[%clk 0:00:03]}  Rh8 {[%clk 0:00:25]} 42. Rh3 {[%clk 0:00:03]}  Rhh5 {[%clk 0:00:25]} 43. Ke2 {[%clk 0:00:03]}  Rxe5+ {[%clk 0:00:24]} 44. Bxe5 {[%clk 0:00:03]}  Rxe5+ {[%clk 0:00:25]} 45. Kd2 {[%clk 0:00:03]}  Re3 {[%clk 0:00:26]} 46. Rh1 {[%clk 0:00:01]}  Rxf3 {[%clk 0:00:26]} 47. Re1 {[%clk 0:00:01]}  h3 {[%clk 0:00:26]} 48. Ree2 {[%clk 0:00:02]}  hxg2 {[%clk 0:00:26]} 49. Rxg2 {[%clk 0:00:03]}  Rf2+ {[%clk 0:00:27]} 50. Rxf2 {[%clk 0:00:04]}  Bxf2 {[%clk 0:00:28]} 51. Ke2 {[%clk 0:00:05]}  Be3 {[%clk 0:00:29]} 52. Kf3 {[%clk 0:00:06]}  f5 {[%clk 0:00:29]} 53. d4 {[%clk 0:00:05]}  Kc6 {[%clk 0:00:29]} 54. Ke2 {[%clk 0:00:06]}  Kd5 {[%clk 0:00:29]} 55. Kd3 {[%clk 0:00:06]}  e5 {[%clk 0:00:30]} 56. Ke2 {[%clk 0:00:07]}  e4 {[%clk 0:00:30]} 57. c4+ {[%clk 0:00:08]}  Kxc4 {[%clk 0:00:30]} 58. Kf1 {[%clk 0:00:09]}  Kxd4 {[%clk 0:00:30]} 59. Ke2 {[%clk 0:00:10]}  Kc4 {[%clk 0:00:31]} 60. Kd1 {[%clk 0:00:11]}  Kxb4 {[%clk 0:00:32]} 61. Kc2 {[%clk 0:00:12]}  Kc5 {[%clk 0:00:33]} 62. Kb1 {[%clk 0:00:13]}  a5 {[%clk 0:00:34]} 63. Ka1 {[%clk 0:00:13]}  Bd4+ {[%clk 0:00:34]} 64. Ka2 {[%clk 0:00:14]}  Be5 {[%clk 0:00:35]} 65. Kb1 {[%clk 0:00:15]}  Bd6 {[%clk 0:00:36]} 66. Kc2 {[%clk 0:00:16]}  Bc7 {[%clk 0:00:37]} 67. Kd1 {[%clk 0:00:16]}  Kd4 {[%clk 0:00:38]} 68. Kc2 {[%clk 0:00:17]}  f3 {[%clk 0:00:39]} 69. Kb1 {[%clk 0:00:18]}  e3 {[%clk 0:00:40]} 70. Kc2 {[%clk 0:00:19]}  Kc4 {[%clk 0:00:40]} 71. Kb2 {[%clk 0:00:20]}  Bb8 {[%clk 0:00:41]} 72. Ka2 {[%clk 0:00:20]}  b4 {[%clk 0:00:41]} 73. Kb2 {[%clk 0:00:21]}  a4 {[%clk 0:00:42]} 74. Ka2 {[%clk 0:00:22]}  a3 {[%clk 0:00:42]} 75. Kb1 {[%clk 0:00:22]}  Kc3 {[%clk 0:00:42]} 76. Kc1 {[%clk 0:00:22]}  e2 {[%clk 0:00:42]} 77. Kb1 {[%clk 0:00:22]}  b3 {[%clk 0:00:43]} 78. Kc1 {[%clk 0:00:22]}  f2 {[%clk 0:00:44]} 79. Kb1 {[%clk 0:00:23]}  f4 {[%clk 0:00:45]} 80. Ka1 {[%clk 0:00:24]}  f3 {[%clk 0:00:46]} 81. Kb1 {[%clk 0:00:24]}  e1=Q# {[%clk 0:00:47]} 0-1


[Site "https://www.chess.com"]

[Event "Titled Tuesday Blitz August 09 Early 2022"]
[White "Melaugh, Shane"]
[Black "Hua, Lefong"]
[WhiteFideId "2509580"]
[BlackFideId "2602253"]
[WhiteElo "1946"]
[BlackElo "2611"]
[Result "0-1"]
[Round "06"]
[TimeControl "180+1"]
[Date "2022.08.09"]
[WhiteClock "0:00:28"]
[BlackClock "0:00:21"]

1. c4 {[%clk 0:02:59]}  Nf6 {[%clk 0:03:00]} 2. Nc3 {[%clk 0:03:00]}  g6 {[%clk 0:03:00]} 3. d4 {[%clk 0:02:59]}  Bg7 {[%clk 0:03:01]} 4. e4 {[%clk 0:03:00]}  O-O {[%clk 0:03:01]} 5. Be2 {[%clk 0:03:01]}  d6 {[%clk 0:03:01]} 6. Be3 {[%clk 0:03:01]}  c5 {[%clk 0:03:01]} 7. dxc5 {[%clk 0:03:01]}  dxc5 {[%clk 0:02:58]} 8. Qxd8 {[%clk 0:02:59]}  Rxd8 {[%clk 0:02:59]} 9. Bxc5 {[%clk 0:02:59]}  Nc6 {[%clk 0:02:56]} 10. Nf3 {[%clk 0:02:40]}  b6 {[%clk 0:02:42]} 11. Ba3 {[%clk 0:02:41]}  Ba6 {[%clk 0:02:29]} 12. O-O {[%clk 0:02:39]}  Nd4 {[%clk 0:02:17]} 13. Nxd4 {[%clk 0:02:21]}  Rxd4 {[%clk 0:02:18]} 14. Bxe7 {[%clk 0:02:20]}  Nxe4 {[%clk 0:02:15]} 15. Nxe4 {[%clk 0:02:17]}  Rxe4 {[%clk 0:01:56]} 16. Bf3 {[%clk 0:02:17]}  Rxe7 {[%clk 0:01:56]} 17. Bxa8 {[%clk 0:02:17]}  Bxb2 {[%clk 0:01:54]} 18. Rae1 {[%clk 0:02:14]}  Rc7 {[%clk 0:01:52]} 19. Bd5 {[%clk 0:01:58]}  Bxc4 {[%clk 0:01:49]} 20. Bxc4 {[%clk 0:01:58]}  Rxc4 {[%clk 0:01:49]} 21. Re7 {[%clk 0:01:56]}  a5 {[%clk 0:01:40]} 22. Rd1 {[%clk 0:01:46]}  Rf4 {[%clk 0:01:33]} 23. g3 {[%clk 0:01:42]}  Rf6 {[%clk 0:01:30]} 24. Rb7 {[%clk 0:01:35]}  Ba3 {[%clk 0:01:23]} 25. Kg2 {[%clk 0:01:29]}  Bc5 {[%clk 0:01:18]} 26. f4 {[%clk 0:01:30]}  h5 {[%clk 0:01:16]} 27. Rdd7 {[%clk 0:01:29]}  Rf5 {[%clk 0:01:13]} 28. Kf3 {[%clk 0:01:28]}  Kg7 {[%clk 0:00:49]} 29. Ke4 {[%clk 0:01:26]}  Rf6 {[%clk 0:00:49]} 30. h3 {[%clk 0:01:24]}  Re6+ {[%clk 0:00:46]} 31. Kd5 {[%clk 0:01:15]}  Rf6 {[%clk 0:00:45]} 32. a4 {[%clk 0:01:07]}  h4 {[%clk 0:00:44]} 33. gxh4 {[%clk 0:01:01]}  Rxf4 {[%clk 0:00:40]} 34. Ke5 {[%clk 0:01:01]}  Rf5+ {[%clk 0:00:37]} 35. Ke4 {[%clk 0:00:59]}  Rf1 {[%clk 0:00:37]} 36. Rbc7 {[%clk 0:00:55]}  Kg8 {[%clk 0:00:34]} 37. Rc8+ {[%clk 0:00:54]}  Kg7 {[%clk 0:00:34]} 38. Rcc7 {[%clk 0:00:55]}  Rf2 {[%clk 0:00:32]} 39. Ke5 {[%clk 0:00:49]}  Rf3 {[%clk 0:00:30]} 40. Ke4 {[%clk 0:00:49]}  Rf1 {[%clk 0:00:30]} 41. Kd3 {[%clk 0:00:46]}  Rf4 {[%clk 0:00:29]} 42. Ke2 {[%clk 0:00:43]}  Kh6 {[%clk 0:00:24]} 43. Rxf7 {[%clk 0:00:43]}  Rxh4 {[%clk 0:00:24]} 44. Rc6 {[%clk 0:00:35]}  Rxa4 {[%clk 0:00:20]} 45. Rff6 {[%clk 0:00:36]}  Ra2+ {[%clk 0:00:20]} 46. Kf1 {[%clk 0:00:36]}  Ra1+ {[%clk 0:00:19]} 47. Kg2 {[%clk 0:00:36]}  Rg1+ {[%clk 0:00:19]} 48. Kh2 {[%clk 0:00:36]}  Rg5 {[%clk 0:00:19]} 49. h4 {[%clk 0:00:36]}  Rg4 {[%clk 0:00:19]} 50. Kh3 {[%clk 0:00:36]}  Kh5 {[%clk 0:00:20]} 51. Rce6 {[%clk 0:00:26]}  Rxh4+ {[%clk 0:00:19]} 52. Kg3 {[%clk 0:00:27]}  Rg4+ {[%clk 0:00:19]} 53. Kf3 {[%clk 0:00:27]}  Rg1 {[%clk 0:00:18]} 54. Re4 {[%clk 0:00:23]}  Rf1+ {[%clk 0:00:18]} 55. Kg3 {[%clk 0:00:22]}  Rxf6 {[%clk 0:00:18]} 56. Rh4+ {[%clk 0:00:22]}  Kg5 {[%clk 0:00:18]} 57. Rg4+ {[%clk 0:00:23]}  Kf5 {[%clk 0:00:19]} 58. Rf4+ {[%clk 0:00:24]}  Ke6 {[%clk 0:00:19]} 59. Re4+ {[%clk 0:00:24]}  Kf7 {[%clk 0:00:20]} 60. Kg4 {[%clk 0:00:25]}  Bd6 {[%clk 0:00:20]} 61. Kg5 {[%clk 0:00:25]}  Rf5+ {[%clk 0:00:20]} 62. Kg4 {[%clk 0:00:26]}  Rf4+ {[%clk 0:00:20]} 63. Rxf4+ {[%clk 0:00:27]}  Bxf4 {[%clk 0:00:21]} 64. Kxf4 {[%clk 0:00:28]}  Kf6 {[%clk 0:00:21]} 0-1


[Site "https://www.chess.com"]

[Event "Titled Tuesday Blitz August 09 Early 2022"]
[White "Mohammad Fahad, Rahman"]
[Black "Legenia, Artem"]
[WhiteFideId "10207791"]
[BlackFideId "14136945"]
[WhiteElo "2323"]
[BlackElo "1936"]
[Result "1-0"]
[Round "06"]
[TimeControl "180+1"]
[Date "2022.08.09"]
[WhiteClock "0:01:11"]
[BlackClock "0:00:55"]

1. d4 {[%clk 0:03:00]}  d5 {[%clk 0:02:51]} 2. Nc3 {[%clk 0:02:59]}  Nf6 {[%clk 0:02:48]} 3. Bf4 {[%clk 0:02:59]}  c6 {[%clk 0:02:47]} 4. e3 {[%clk 0:02:57]}  Bf5 {[%clk 0:02:47]} 5. Nf3 {[%clk 0:02:57]}  h6 {[%clk 0:02:46]} 6. Ne5 {[%clk 0:02:57]}  Nbd7 {[%clk 0:02:45]} 7. Bd3 {[%clk 0:02:56]}  Bxd3 {[%clk 0:02:45]} 8. cxd3 {[%clk 0:02:55]}  e6 {[%clk 0:02:45]} 9. O-O {[%clk 0:02:52]}  Nxe5 {[%clk 0:02:45]} 10. dxe5 {[%clk 0:02:52]}  Nd7 {[%clk 0:02:45]} 11. d4 {[%clk 0:02:52]}  Bb4 {[%clk 0:02:44]} 12. Qb3 {[%clk 0:02:49]}  Bxc3 {[%clk 0:02:43]} 13. bxc3 {[%clk 0:02:49]}  Qb6 {[%clk 0:02:43]} 14. Qa3 {[%clk 0:02:46]}  c5 {[%clk 0:02:32]} 15. Rab1 {[%clk 0:02:41]}  Qc7 {[%clk 0:02:32]} 16. c4 {[%clk 0:02:36]}  dxc4 {[%clk 0:02:17]} 17. d5 {[%clk 0:02:36]}  O-O {[%clk 0:02:17]} 18. Qc3 {[%clk 0:02:29]}  a6 {[%clk 0:01:54]} 19. d6 {[%clk 0:02:21]}  Qc6 {[%clk 0:01:53]} 20. Qxc4 {[%clk 0:02:21]}  b5 {[%clk 0:01:54]} 21. Qc2 {[%clk 0:02:20]}  c4 {[%clk 0:01:53]} 22. Bg3 {[%clk 0:02:11]}  Nc5 {[%clk 0:01:53]} 23. Rbd1 {[%clk 0:02:04]}  Rfd8 {[%clk 0:01:51]} 24. Rd4 {[%clk 0:01:54]}  Rac8 {[%clk 0:01:50]} 25. Rc1 {[%clk 0:01:53]}  Nd7 {[%clk 0:01:49]} 26. f4 {[%clk 0:01:50]}  a5 {[%clk 0:01:43]} 27. h3 {[%clk 0:01:48]}  Nf8 {[%clk 0:01:29]} 28. Kh2 {[%clk 0:01:47]}  a4 {[%clk 0:01:26]} 29. Bh4 {[%clk 0:01:35]}  Rd7 {[%clk 0:01:26]} 30. f5 {[%clk 0:01:35]}  exf5 {[%clk 0:01:25]} 31. Qxf5 {[%clk 0:01:35]}  Ne6 {[%clk 0:01:25]} 32. Rg4 {[%clk 0:01:34]}  Kh8 {[%clk 0:01:22]} 33. Be7 {[%clk 0:01:30]}  Nd8 {[%clk 0:01:13]} 34. Rxg7 {[%clk 0:01:11]}  Kxg7 {[%clk 0:01:12]} 35. Bf6+ {[%clk 0:01:11]}  Kf8 {[%clk 0:00:55]} 36. Qh7 {[%clk 0:01:11]} 1-0


[Site "https://www.chess.com"]